fUSD/lending_fUSD_20240215
["ID","MTS","AMOUNT","RATE_DAILY","PERIOD"]
[314098533,1707976430823,137313.05995277,0.00023,2]
[314098535,1707976563811,865.0,0.000301,100]
[314098547,1707977431812,-4795.63436914,0.0002509,2]
[314098548,1707977431821,-2374.11834098,0.000263,2]
[314098549,1707977431831,-60954.51168342,0.0002799,2]
[314098550,1707977431840,-75517.21661847,0.00028,2]
[314098551,1707977431850,-1965.65380961,0.000281,2]
[314098552,1707977431859,-20149.29637141,0.000295,2]
[314098553,1707977431871,-17078.1215,0.000327,2]
[314098554,1707977431880,-2950.0,0.000332,3]
[314098555,1707977431890,-835.44482563,0.00033461,10]
[314098556,1707977431899,-1904.14028971,0.0003479,2]
[314098557,1707977431908,-1904.14028968,0.0003479,2]
[314098558,1707977431918,-345.50795069,0.00034799,2]
[314098559,1707977431927,-345.50795062,0.00034799,2]
[314098560,1707977431937,-345.50795062,0.00034889,2]
[314098561,1707977431946,-10393.5699,0.00035,2]
[314098562,1707977431955,-356.93,0.00035332,2]
[314098563,1707977431965,-1904.14028968,0.00035481,2]
[314098564,1707977431974,-611.18051092,0.0003591,5]
[314098565,1707977431983,-345.50795062,0.00036033,2]
[314098566,1707977431992,-1904.14028968,0.00036541,2]
[314098567,1707977432001,-154.07,0.000368,3]
[314098568,1707977432011,-23900.0,0.00036847,2]
[314098569,1707977432020,-1050.17,0.00036863,2]
[314098570,1707977432031,-250.0,0.00037007,2]
[314098571,1707977432040,-250.0,0.00037029,111]
[314098572,1707977432048,-794.78,0.00037033,2]
[314098573,1707977432057,-345.50795062,0.00037178,2]
[314098574,1707977432067,-169.03,0.00037202,2]
[314098575,1707977432076,-250.0,0.00037283,2]
[314098576,1707977432086,-150.0,0.00037335,2]
[314098577,1707977432095,-267.88,0.00037398,2]
[314098578,1707977432104,-1194.94,0.000374,2]
[314098580,1707977432114,-168.15,0.00037436,2]
[314098581,1707977432124,-2000.0,0.00037453,2]
[314098583,1707977432133,-356.93,0.00037596,2]
[314098586,1707977432145,-1904.14028968,0.00037601,2]
[314098588,1707977432155,-151.021518,0.00037748,19]
[314098590,1707977432164,-205.22,0.00037839,2]
[314098592,1707977432173,-151.021518,0.00037848,19]
[314098593,1707977432183,-151.021518,0.00037948,19]
[314098595,1707977432192,-208.91904388,0.00038,5]
[314098598,1707977432202,-154.07,0.00038,3]
[314098601,1707977432211,-1000.0,0.00038,9]
[314098604,1707977432220,-1006.0,0.00038,7]
[314098607,1707977432229,-151.021518,0.00038048,20]
[314098610,1707977432238,-151.021518,0.00038148,20]
[314098613,1707977432247,-151.021518,0.00038248,20]
[314098616,1707977432256,-204.0,0.00038254,2]
[314098619,1707977432266,-345.50795062,0.00038322,2]
[314098622,1707977432275,-151.021518,0.00038348,20]
[314098625,1707977432287,-4000.0,0.00038356,30]
[314098628,1707977432296,-375.0,0.000384,7]
[314098631,1707977432306,-4239.972,0.00038408,2]
[314098634,1707977432315,-269.319,0.00038408,2]
[314098636,1707977432325,-3559.293,0.00038408,2]
[314098638,1707977432334,-151.021518,0.00038448,20]
[314098640,1707977432344,-5000.0,0.000385,15]
[314098642,1707977432355,-171.021518,0.00038548,20]
[314098644,1707977432364,-151.021518,0.00038648,20]
[314098646,1707977432373,-1904.14028968,0.0003866,2]
[314098648,1707977432382,-1100.13596497,0.00038716,3]
[314098650,1707977432392,-227.87012843,0.00038716,2]
[314098652,1707977432403,-155.0,0.00038716,120]
[314098654,1707977432412,-4650.94335151,0.00038716,2]
[314098657,1707977432424,-6192.4832135,0.00038716,4]
[314098658,1707977432433,-189.2879461,0.00038716,2]
[314098661,1707977432445,-704.40450874,0.00038716,2]
[314098663,1707977432633,-646.04626024,0.00038716,120]
[314098664,1707977432642,-433.97936806,0.00038716,14]
[314098665,1707977432651,-563.5398554,0.00038716,2]
[314098666,1707977432661,-25000.0,0.00038716,30]
[314098667,1707977432670,-500.0,0.00038716,7]
[314098668,1707977432680,-500.0,0.00038719,7]
[314098669,1707977432689,-500.0,0.00038719,7]
[314098670,1707977432698,-719.44,0.00038719,7]
[314098671,1707977432707,-500.0,0.00038719,7]
[314098672,1707977432716,-473.45205368,0.00038719,2]
[314098673,1707977432725,-151.021518,0.00038748,20]
[314098674,1707977432734,-169.03,0.00038845,2]
[314098675,1707977432743,-151.021518,0.00038848,20]
[314098676,1707977432752,-227.08616732,0.000389,11]
[314098677,1707977432761,-791.82990544,0.000389,9]
[314098678,1707977432770,-151.021518,0.00038948,20]
[314098679,1707977432780,-500.0,0.00038993,7]
[314098680,1707977432789,-500.0,0.00038993,7]
[314098681,1707977432798,-719.44,0.00038993,7]
[314098682,1707977432807,-500.0,0.00038993,7]
[314098683,1707977432816,-527.12384033,0.00038999,7]
[314098684,1707977432826,-500.0,0.00038999,7]
[314098685,1707977432835,-412.55822903,0.00038999,7]
[314098686,1707977432843,-500.0,0.00038999,7]
[314098687,1707977432853,-305.99595124,0.00038999,7]
[314098688,1707977432862,-500.0,0.00038999,7]
[314098689,1707977432871,-500.0,0.00038999,7]
[314098690,1707977432880,-223.33456629,0.00038999,7]
[314098691,1707977432889,-500.0,0.00038999,7]
[314098692,1707977432899,-166.47,0.00038999,7]
[314098693,1707977432909,-369.48039954,0.00038999,7]
[314098694,1707977432918,-500.0,0.00038999,7]
[314098695,1707977432928,-585.35149538,0.00038999,7]
[314098696,1707977432937,-630.48717861,0.00038999,7]
[314098697,1707977432947,-500.0,0.00038999,7]
[314098698,1707977432956,-500.0,0.00038999,7]
[314098699,1707977432966,-265.4061926,0.00038999,7]
[314098700,1707977432975,-165.03135384,0.00038999,7]
[314098701,1707977432984,-365.21089363,0.00038999,7]
[314098702,1707977432993,-500.0,0.00038999,7]
[314098703,1707977433002,-500.0,0.00038999,7]
[314098704,1707977433011,-202.23798829,0.00038999,7]
[314098705,1707977433020,-608.66951798,0.00038999,7]
[314098706,1707977433031,-248.89062842,0.00038999,7]
[314098707,1707977433041,-540.44643897,0.00038999,7]
[314098708,1707977433050,-191.72245552,0.00038999,7]
[314098709,1707977433059,-500.0,0.00038999,7]
[314098710,1707977433069,-379.01704661,0.00038999,7]
[314098711,1707977433078,-500.0,0.00038999,7]
[314098712,1707977433087,-500.0,0.00038999,7]
[314098713,1707977433096,-526.52,0.00038999,7]
[314098714,1707977433105,-500.0,0.00038999,7]
[314098715,1707977433114,-500.0,0.00038999,7]
[314098716,1707977433123,-500.0,0.00038999,7]
[314098717,1707977433131,-500.0,0.00038999,7]
[314098718,1707977433140,-500.0,0.00038999,7]
[314098719,1707977433148,-540.53,0.00038999,7]
[314098720,1707977433157,-312.16,0.00038999,7]
[314098721,1707977433166,-619.47,0.00038999,7]
[314098722,1707977433183,-500.0,0.00038999,7]
[314098723,1707977433196,-500.0,0.00038999,7]
[314098724,1707977433205,-307.94529886,0.00038999,7]
[314098725,1707977433214,-500.0,0.00038999,7]
[314098726,1707977433224,-500.0,0.00038999,7]
[314098727,1707977433233,-16512.20704529,0.00039,15]
[314098728,1707977433289,-130949.43966091,0.00039,15]
[314098729,1707977433299,-16064.0,0.00039,2]
[314098730,1707977433308,-8492.25025704,0.00039,120]
[314098731,1707977433320,-1559.0993828,0.00039,120]
[314098732,1707977433329,-861.0,0.00039,9]
[314098733,1707977433339,-151.021518,0.00039048,21]
[314098734,1707977433348,-171.021518,0.00039148,21]
[314098735,1707977433357,-151.021518,0.00039198,21]
[314098736,1707977433367,-444.45085739,0.000392,2]
[314098737,1707977433379,-298.68682809,0.000392,2]
[314098738,1707977433390,-394.90376815,0.000392,2]
[314098739,1707977433402,-272.44433689,0.000392,2]
[314098740,1707977433413,-23589.51420948,0.000392,2]
[314098741,1707977433422,-151.021518,0.00039248,21]
[314098742,1707977433432,-169.72,0.0003926,2]
[314098743,1707977433441,-500.0,0.00039267,7]
[314098744,1707977433452,-500.0,0.00039267,7]
[314098745,1707977433461,-719.44,0.00039267,7]
[314098746,1707977433470,-500.0,0.00039267,7]
[314098747,1707977433480,-500.0,0.00039273,7]
[314098748,1707977433489,-252.38790751,0.00039273,7]
[314098749,1707977433498,-526.52,0.00039273,7]
[314098750,1707977433507,-484.47905646,0.00039273,7]
[314098751,1707977433517,-500.0,0.00039273,7]
[314098752,1707977433529,-500.0,0.00039273,7]
[314098753,1707977433538,-500.0,0.00039273,7]
[314098754,1707977433548,-207.65087466,0.00039273,7]
[314098755,1707977433557,-500.0,0.00039273,7]
[314098756,1707977433566,-500.0,0.00039273,7]
[314098757,1707977433576,-151.021518,0.00039298,20]
[314098758,1707977433585,-154.07,0.000393,3]
[314098759,1707977433595,-151.021518,0.00039348,21]
[314098760,1707977433605,-791.82990537,0.00039363,9]
[314098761,1707977433614,-151.021518,0.00039398,20]
[314098762,1707977433626,-200.0,0.00039408,15]
[314098763,1707977433635,-800.0,0.00039408,10]
[314098764,1707977433644,-200.0,0.00039408,20]
[314098765,1707977433654,-151.021518,0.00039448,21]
[314098766,1707977433664,-345.50795062,0.00039467,2]
[314098767,1707977433673,-151.021518,0.00039498,19]
[314098768,1707977433683,-500.0,0.00039541,7]
[314098769,1707977433693,-500.0,0.00039541,7]
[314098770,1707977433702,-719.44,0.00039541,7]
[314098771,1707977433712,-500.0,0.00039541,7]
[314098772,1707977433721,-500.0,0.00039547,7]
[314098773,1707977433731,-526.52,0.00039547,7]
[314098774,1707977433741,-500.0,0.00039547,7]
[314098775,1707977433751,-500.0,0.00039547,7]
[314098776,1707977433761,-500.0,0.00039547,7]
[314098777,1707977433771,-500.0,0.00039547,7]
[314098778,1707977433787,-500.0,0.00039547,7]
[314098779,1707977433797,-151.021518,0.00039548,21]
[314098780,1707977433809,-548.66593056,0.000396,2]
[314098781,1707977433818,-151.021518,0.00039648,21]
[314098782,1707977433828,-82175.0980579,0.00039688,4]
[314098783,1707977433838,-500.0,0.00039697,7]
[314098784,1707977433848,-619.47,0.00039697,7]
[314098785,1707977433857,-180657.9125,0.00039698,2]
[314098786,1707977433867,-1000.0,0.000397,2]
[314098787,1707977433877,-1904.14028968,0.0003972,2]
[314098788,1707977433886,-550.0,0.00039726,7]
[314098789,1707977433896,-151.021518,0.00039748,21]
[314098790,1707977433909,-1334.23272371,0.00039762,2]
[314098791,1707977433919,-1086.0,0.0003977,20]
[314098792,1707977433929,-846.0,0.0003977,20]
[314098793,1707977433939,-613.8924896,0.00039799,7]
[314098794,1707977433950,-500.0,0.00039799,7]
[314098795,1707977433960,-500.0,0.00039799,7]
[314098796,1707977433972,-1000.0,0.000398,28]
[314098797,1707977433981,-522.6,0.00039815,7]
[314098798,1707977433991,-351.2391,0.00039815,7]
[314098799,1707977434001,-719.44,0.00039815,7]
[314098800,1707977434010,-520.42,0.00039815,7]
[314098801,1707977434019,-500.0,0.00039821,7]
[314098802,1707977434034,-526.52,0.00039821,7]
[314098803,1707977434044,-500.0,0.00039821,7]
[314098804,1707977434053,-356.49598932,0.00039821,7]
[314098805,1707977434062,-500.0,0.00039821,7]
[314098806,1707977434072,-500.0,0.00039821,7]
[314098807,1707977434081,-500.0,0.00039821,7]
[314098808,1707977434090,-791.82990537,0.00039826,9]
[314098809,1707977434099,-151.021518,0.00039848,21]
[314098810,1707977434108,-356.93,0.0003986,2]
[314098811,1707977434117,-1392.2136341,0.000399,30]
[314098812,1707977434126,-151.021518,0.00039948,21]
[314098813,1707977434135,-730.51837039,0.00039978,2]
[314098814,1707977434145,-82175.0980579,0.0003998,5]
[314098815,1707977434155,-164350.196116,0.0003999,5]
[314098816,1707977434164,-159.554165,0.0003999,7]
[314098817,1707977434173,-159.554165,0.0003999,7]
[314098818,1707977434186,-151.0,0.0003999,7]
[314098819,1707977434196,-607.0943131,0.00039991,2]
[314098820,1707977434205,-3316.12830692,0.00039999,2]
[314098821,1707977434215,-500.0,0.00039999,7]
[314098822,1707977434224,-2482.70489,0.00039999,2]
[314098823,1707977434233,-619.47,0.00039999,7]
[314098824,1707977434242,-105333.15426462,0.0004,6]
[314098825,1707977434252,-55792.08383481,0.0004,30]
[314098826,1707977434271,-10384.152,0.0004,30]
[314098827,1707977434288,-24841.56339577,0.0004,30]
[314098828,1707977434299,-46302.16421975,0.0004,30]
[314098842,1707977437952,-10488.451428,0.0004,30]
[314098843,1707977438010,-994.05148975,0.0004,30]
[314098844,1707977438022,-838.23905145,0.0004,30]
[314098845,1707977438034,-45148.63189533,0.0004,30]
[314098846,1707977438044,-773.84909817,0.0004,3]
[314098847,1707977438053,-500.0,0.0004,4]
[314098848,1707977438063,-249.0,0.0004,2]
[314098849,1707977438073,-790.42,0.0004,5]
[314098850,1707977438082,-300.0,0.0004,30]
[314098851,1707977438091,-1678.35630843,0.0004,7]
[314098852,1707977438101,-500.0,0.0004,4]
[314098853,1707977438110,-49301.82202267,0.0004,30]
[314098854,1707977438179,-321102.88149396,0.0004,30]
[314098856,1707977438189,-1916.0,0.0004,2]
[314098858,1707977438199,-37504.9939874,0.0004,30]
[314098861,1707977438208,-2000.0,0.0004,7]
[314098863,1707977438218,-200.0,0.0004,7]
[314098865,1707977438226,-1169.26065296,0.0004,7]
[314098867,1707977438235,-106200.74,0.0004,2]
[314098869,1707977438245,-177.34,0.0004,2]
[314098871,1707977438254,-151.0,0.0004,7]
[314098873,1707977438264,-151.0,0.0004,7]
[314098875,1707977438273,-151.0,0.0004,7]
[314098877,1707977438282,-151.0,0.0004,7]
[314098879,1707977438291,-151.0,0.0004,7]
[314098881,1707977438300,-151.0,0.0004,7]
[314098883,1707977438309,-250.0,0.0004,2]
[314098885,1707977438318,-159.554165,0.0004,7]
[314098887,1707977438327,-550.0,0.0004,7]
[314098889,1707977438336,-159.554165,0.0004,7]
[314098891,1707977438346,-178.588131,0.0004,7]
[314098893,1707977438354,-6182.6277302,0.00040018,2]
[314098895,1707977438364,-82175.0980579,0.00040031,5]
[314098897,1707977438373,-155.67934135,0.00040041,30]
[314098899,1707977438382,-151.021518,0.00040048,21]
[314098901,1707977438391,-158.0,0.0004007,7]
[314098903,1707977438400,-719.44,0.00040089,7]
[314098905,1707977438409,-500.0,0.00040095,7]
[314098907,1707977438418,-526.52,0.00040095,7]
[314098909,1707977438427,-500.0,0.00040095,7]
[314098910,1707977438441,-500.0,0.00040095,7]
[314098913,1707977438451,-500.0,0.00040095,7]
[314098914,1707977438460,-500.0,0.00040095,7]
[314098917,1707977438469,-414.9,0.00040137,2]
[314098918,1707977438479,-947.51,0.00040137,2]
[314098920,1707977438488,-151.021518,0.00040148,21]
[314098923,1707977438497,-1086.0,0.0004018,20]
[314098925,1707977438506,-846.0,0.0004018,20]
[314098927,1707977438515,-159.53892364,0.00040234,30]
[314098929,1707977438525,-500.0,0.0004024,10]
[314098931,1707977438537,-159.69045391,0.00040245,30]
[314098933,1707977438546,-151.021518,0.00040248,21]
[314098935,1707977438555,-159.53892364,0.00040265,30]
[314098937,1707977438565,-230.64329861,0.00040273,7]
[314098939,1707977438573,-791.82990537,0.00040289,9]
[314098941,1707977438583,-1334.23272372,0.00040296,2]
[314098943,1707977438592,-211.0,0.000403,2]
[314098945,1707977438601,-208.0,0.0004032,2]
[314098947,1707977438611,-2110.0,0.00040321,15]
[314098949,1707977438620,-82175.0980579,0.00040345,5]
[314098951,1707977438629,-159.554165,0.00040345,7]
[314098953,1707977438639,-159.554165,0.00040345,7]
[314098955,1707977438648,-151.021518,0.00040348,21]
[314098957,1707977438657,-500.0,0.00040354,7]
[314098959,1707977438668,-619.47,0.00040354,7]
[314098961,1707977438677,-82175.0980579,0.00040355,5]
[314098962,1707977438686,-151.0,0.00040355,7]
[314098963,1707977438696,-158.796483,0.00040355,7]
[314098964,1707977438705,-151.0,0.00040355,7]
[314098965,1707977438714,-151.0,0.00040355,7]
[314098966,1707977438724,-151.0,0.00040355,7]
[314098967,1707977438733,-151.0,0.00040355,7]
[314098968,1707977438742,-719.44,0.00040363,7]
[314098969,1707977438751,-500.0,0.00040364,7]
[314098970,1707977438760,-619.47,0.00040364,7]
[314098972,1707977438769,-200000.0,0.00040365,30]
[314098973,1707977438778,-151.0,0.00040365,7]
[314098975,1707977438789,-159.554165,0.00040365,7]
[314098977,1707977438798,-159.554165,0.00040365,7]
[314098979,1707977438808,-500.0,0.00040369,7]
[314098981,1707977438817,-526.52,0.00040369,7]
[314098983,1707977438826,-500.0,0.00040369,7]
[314098985,1707977438835,-500.0,0.00040369,7]
[314098987,1707977438844,-500.0,0.00040369,7]
[314098989,1707977438854,-500.0,0.00040369,7]
[314098991,1707977438863,-156.04193554,0.00040407,30]
[314098993,1707977438873,-159.69045391,0.00040425,30]
[314098995,1707977438882,-151.021518,0.00040448,21]
[314098997,1707977438891,-159.53892364,0.00040477,30]
[314098999,1707977438901,-169.03,0.00040489,2]
[314099001,1707977438910,-774.0,0.000405,4]
[314099003,1707977438920,-154.07,0.000405,4]
[314099006,1707977438929,-353.45,0.00040548,2]
[314099008,1707977438938,-1500.0,0.00040555,2]
[314099010,1707977438948,-165.24115021,0.00040555,30]
[314099012,1707977438960,-155.97716759,0.00040559,30]
[314099014,1707977438969,-205.111,0.00040578,30]
[314099016,1707977438979,-151.0,0.00040578,7]
[314099017,1707977438988,-151.0,0.00040578,7]
[314099020,1707977438998,-165.24115021,0.0004058,30]
[314099022,1707977439007,-1086.0,0.0004059,20]
[314099024,1707977439017,-846.0,0.0004059,20]
[314099026,1707977439026,-345.50795062,0.00040611,3]
[314099028,1707977439037,-159.53892364,0.00040612,30]
[314099030,1707977439046,-150.0,0.00040621,2]
[314099032,1707977439056,-719.44,0.00040637,7]
[314099034,1707977439065,-150.0,0.00040639,2]
[314099036,1707977439075,-159.69045391,0.00040639,30]
[314099038,1707977439084,-500.0,0.00040643,7]
[314099040,1707977439094,-526.52,0.00040643,7]
[314099042,1707977439103,-500.0,0.00040643,7]
[314099044,1707977439114,-500.0,0.00040643,7]
[314099046,1707977439123,-500.0,0.00040643,7]
[314099048,1707977439133,-500.0,0.00040643,7]
[314099050,1707977439142,-292.999675,0.00040654,2]
[314099052,1707977439151,-159.69045391,0.00040663,30]
[314099054,1707977439160,-153.28330263,0.00040696,30]
[314099056,1707977439170,-150.0,0.00040708,2]
[314099058,1707977439179,-1500.0,0.00040718,2]
[314099060,1707977439188,-169.72,0.00040733,2]
[314099062,1707977439197,-150.0,0.00040745,2]
[314099064,1707977439206,-791.82990537,0.00040751,10]
[314099066,1707977439215,-150.0,0.00040764,2]
[314099068,1707977439224,-1904.14028968,0.0004078,3]
[314099070,1707977439234,-2000.0,0.00040795,5]
[314099072,1707977439243,-205.28338374,0.000408,14]
[314099074,1707977439252,-200.0,0.000408,16]
[314099076,1707977439262,-205.8867609,0.000408,2]
[314099078,1707977439271,-161.31047168,0.00040801,30]
[314099080,1707977439281,-2110.0,0.00040821,15]
[314099082,1707977439292,-650.0,0.00040821,31]
[314099085,1707977439301,-650.0,0.00040821,31]
[314099087,1707977439311,-639.11453937,0.00040821,31]
[314099089,1707977439321,-165.6801245,0.00040844,2]
[314099091,1707977439330,-159.68625956,0.00040844,2]
[314099093,1707977439339,-82175.0980579,0.00040862,6]
[314099095,1707977439348,-5000.0,0.00040872,3]
[314099097,1707977439358,-1461.03674078,0.00040897,2]
[314099099,1707977439367,-762943.56811313,0.000409,3]
[314099101,1707977439377,-2860.93219222,0.000409,2]
[314099103,1707977439387,-5000.0,0.000409,30]
[314099104,1707977439397,-5000.0,0.000409,30]
[314099106,1707977439408,-10000.0,0.000409,30]
[314099108,1707977439418,-2000.0,0.000409,30]
[314099110,1707977439427,-10000.0,0.000409,30]
[314099112,1707977439442,-159.554165,0.000409,7]
[314099114,1707977439453,-159.554165,0.000409,7]
[314099116,1707977439464,-150.91484715,0.00040904,30]
[314099118,1707977439473,-719.44,0.00040911,7]
[314099120,1707977439482,-651.2309737,0.00040916,2]
[314099122,1707977439492,-500.0,0.00040917,7]
[314099124,1707977439501,-526.52,0.00040917,7]
[314099126,1707977439510,-500.0,0.00040917,7]
[314099128,1707977439519,-500.0,0.00040917,7]
[314099130,1707977439529,-500.0,0.00040917,7]
[314099132,1707977439542,-500.0,0.00040917,7]
[314099134,1707977439552,-205.28338369,0.00040922,15]
[314099136,1707977439561,-6594.6105767,0.00040944,2]
[314099138,1707977439570,-7006.5934231,0.00040944,2]
[314099140,1707977439579,-695.3676342,0.00040944,2]
[314099157,1707977439723,-500.0,0.0004095,7]
[314099159,1707977439733,-619.47,0.0004095,7]
[314099161,1707977439742,-500.0,0.00040952,7]
[314099163,1707977439751,-185.859569,0.00040952,7]
[314099165,1707977439761,-619.47,0.00040952,7]
[314099167,1707977439770,-4383.11022234,0.00040969,2]
[314099169,1707977439780,-597.0387502,0.00040971,7]
[314099171,1707977439791,-5000.0,0.00040971,2]
[314099173,1707977439802,-1000.0,0.00040971,2]
[314099175,1707977439811,-151.0,0.00040971,7]
[314099177,1707977439820,-151.0,0.00040971,7]
[314099179,1707977439829,-619.47,0.00040971,7]
[314099181,1707977439838,-619.47,0.00040971,7]
[314099183,1707977439847,-619.47,0.00040971,7]
[314099185,1707977439856,-619.47,0.00040971,7]
[314099187,1707977439865,-619.47,0.00040971,7]
[314099189,1707977439874,-619.47,0.00040971,7]
[314099191,1707977439884,-619.47,0.00040971,7]
[314099193,1707977439894,-170.20308447,0.00040972,2]
[314099195,1707977439903,-427.78388612,0.00040972,3]
[314099197,1707977439913,-780568.79004791,0.00040972,4]
[314099200,1707977439927,-28047.6139803,0.00040972,4]
[314099202,1707977439939,-2614.7562519,0.00040972,4]
[314099265,1707977440492,-157.76495874,0.000262,2]
[314099267,1707977440501,-850.49803836,0.00033484,10]
[314099269,1707977440511,-353.76655189,0.00039999,2]
[314099272,1707977440523,-2660.29375038,0.00039999,2]
[314099273,1707977440534,-16723.29576773,0.00040972,4]
[314099276,1707977440546,-7647.18471523,0.00040972,4]
[314099278,1707977440558,-312.52609998,0.00040972,4]
[314099280,1707977440569,-821.43072778,0.00040972,4]
[314099285,1707977440607,-1511.05752577,0.00040972,4]
[314099287,1707977440620,-1499.98535762,0.00040972,4]
[314099294,1707977440666,-6119.44966833,0.00040972,4]
[314099296,1707977440678,-7520.20129614,0.00040972,4]
[314099298,1707977440689,-55291.236,0.00040972,4]
[314099303,1707977440725,-1768.55826938,0.00040972,4]
[314099310,1707977440785,-461.74,0.00040972,4]
[314099311,1707977440796,-25976.99999999,0.00040972,4]
[314099512,1707977442773,-9991.20102073,0.00040972,4]
[314099526,1707977442885,-1547.60961644,0.00040972,4]
[314099528,1707977442895,-3653.19699421,0.00040972,4]
[314099534,1707977442942,-49984.69279806,0.00040972,4]
[314099541,1707977442999,-935.399985,0.00040972,4]
[314099543,1707977443011,-1548.15,0.00040972,4]
[314099549,1707977443057,-2499.40594227,0.00040972,4]
[314099552,1707977443069,-1420.10342999,0.00040972,4]
[314099558,1707977443115,-670.64701535,0.00040972,4]
[314099565,1707977443174,-13851.94499999,0.00040972,4]
[314099599,1707977445809,-500.0,0.00038719,7]
[314099600,1707977445819,-500.0,0.00038993,7]
[314099601,1707977445828,-2260.5452267,0.0004097,2]
[314099602,1707977445837,-2309.90931298,0.00040972,4]
[314099603,1707977445848,-23077.830326,0.00040972,4]
[314099604,1707977445866,-1140.9351341,0.00040972,4]
[314099605,1707977445877,-1324.8,0.00040972,4]
[314099606,1707977445979,-500.0,0.00039267,7]
[314099607,1707977445988,-1050.94923716,0.00040972,4]
[314099608,1707977446094,-144793.51060122,0.00040972,4]
[314099609,1707977446103,-1164.0999994,0.00040972,4]
[314099610,1707977446113,-151.0,0.00040972,7]
[314099611,1707977446122,-151.0,0.00040972,7]
[314099612,1707977446132,-7418.5762695,0.00040972,2]
[314099613,1707977446141,-7830.5591159,0.00040972,2]
[314099614,1707977446150,-151.0,0.00040972,7]
[314099615,1707977446160,-151.0,0.00040972,7]
[314099616,1707977446169,-739.5042947,0.00040972,2]
[314099617,1707977446178,-783.6409553,0.00040972,2]
[314099618,1707977446187,-159.554165,0.00040972,7]
[314099619,1707977446196,-159.554165,0.00040972,7]
[314099621,1707977446205,-885.95,0.00040986,7]
[314099622,1707977446214,-885.95,0.00040986,7]
[314099623,1707977446223,-885.95,0.00040986,7]
[314099624,1707977446232,-885.95,0.00040986,7]
[314099625,1707977446241,-885.95,0.00040986,7]
[314099626,1707977446250,-885.95,0.00040986,7]
[314099627,1707977446259,-885.95,0.00040986,7]
[314099628,1707977446269,-885.95,0.00040986,7]
[314099629,1707977446278,-163.71291342,0.00040986,7]
[314099630,1707977446287,-200.0,0.00040987,11]
[314099631,1707977446295,-200.0,0.00040987,10]
[314099632,1707977446304,-200.0,0.00040987,9]
[314099633,1707977446313,-200.0,0.00040987,8]
[314099634,1707977446322,-200.0,0.00040987,7]
[314099635,1707977446331,-213.38904749,0.0004099,7]
[314099636,1707977446340,-200.0,0.0004099,7]
[314099637,1707977446349,-6500.0,0.0004099,15]
[314099638,1707977446358,-200.0,0.0004099,7]
[314099639,1707977446367,-200.0,0.0004099,7]
[314099640,1707977446376,-186.61095251,0.0004099,7]
[314099641,1707977446385,-200.0,0.0004099,7]
[314099642,1707977446394,-200.0,0.0004099,7]
[314099643,1707977446403,-200.0,0.0004099,7]
[314099644,1707977446412,-200.0,0.0004099,7]
[314099645,1707977446421,-200.0,0.0004099,7]
[314099646,1707977446434,-213.38904749,0.0004099,7]
[314099647,1707977446445,-200.0,0.0004099,7]
[314099648,1707977446459,-200.0,0.0004099,7]
[314099649,1707977446467,-619.47,0.00040999,7]
[314099650,1707977446476,-619.47,0.00040999,7]
[314099651,1707977446486,-619.47,0.00040999,7]
[314099652,1707977446495,-619.47,0.00040999,7]
[314099653,1707977446504,-619.47,0.00040999,7]
[314099654,1707977446513,-619.47,0.00040999,7]
[314099655,1707977446522,-619.47,0.00040999,7]